Cogmind - Beta 13 @@@ ROGUE MODE // 2024.04.07 @ 19:18:54 Player: TerraSleet Result: Destroyed by D-53 Grenadier with Mini Grenade Launcher Performance ------------- Evolutions (0) 0 Regions Visited (4) 800 Robots Destroyed (12) 60 Value Destroyed (324) 324 Prototype IDs (23) 460 Alien Tech Used (0) 0 Bonus (300) 300 TOTAL SCORE: 1944 Bonus ------- Aligned with FarCom 300 Cogmind --------- Core Integrity 0/250 Matter 300/300 Energy 99/100 System Corruption 0% Temperature Warm (142) Movement Core (100) Ox1 Location -9/Mines Parts ------- > --- POWER (1) -------- (None) > --- PROPULSION (2) --- (None) > --- UTILITY (2) ------ Small Storage Unit Sensor Array > --- WEAPON (2) ------- (None) > --- INVENTORY (8) ---- Flying Fortress v7 Seismic Detector Beam Cannon Peak State ------------ > --- POWER ------------ Light Ion Engine > --- PROPULSION ------- Hover Unit Hover Unit > --- UTILITY ---------- Small Storage Unit Sensor Array > --- WEAPON ----------- Beam Cannon Beam Cannon > --- INVENTORY -------- Flying Fortress v7 Seismic Detector Beam Cannon [Rating: 10] Favorites ----------- Power Light Ion Engine Engine Light Ion Engine Propulsion Hover Unit Leg Aluminum Leg Hover Unit Hover Unit Utility Sensor Array Device Sensor Array Storage Small Storage Unit Weapon Beam Cannon Energy Gun Medium Laser Energy Cannon Beam Cannon Ballistic Gun Assault Rifle Build | -11 -10 -10 -10 -9 ------- Run | Yrd Mat Min Exi Min Slots Evolved . | . . . . . Power . | . . . . . Propulsion . | . . . . . Utility . | . . . . . Weapon . | . . . . . Parts Attached 15 | 7 7 . 1 . Power 2 | 1 1 . . . Engine 2 | 1 1 . . . Core . | . . . . . Reactor . | . . . . . Propulsion 5 | 2 3 . . . Treads . | . . . . . Leg 2 | 2 . . . . Wheel . | . . . . . Hover 3 | . 3 . . . Flight . | . . . . . Utility 4 | 2 1 . 1 . Device 3 | 2 1 . . . Storage 1 | . . . 1 . Processor . | . . . . . Hackware . | . . . . . Protection . | . . . . . Artifact . | . . . . . Weapon 4 | 2 2 . . . Energy Gun 1 | 1 . . . . Energy Cannon 2 | . 2 . . . Ballistic Gun 1 | 1 . . . . Ballistic Cannon . | . . . . . Launcher . | . . . . . Special Weapon . | . . . . . Impact Weapon . | . . . . . Slashing Weapon . | . . . . . Piercing Weapon . | . . . . . Special Melee Weapon . | . . . . . Unidentified Prototypes . | . . . . . Parts Lost 5 | . . . . 5 Power 1 | . . . . 1 Propulsion 2 | . . . . 2 Utility . | . . . . . Weapon 2 | . . . . 2 Highest Loss Streak 5 | . . . . 5 To Critical Strikes . | . . . . . Average Slot Usage (%) 99 | . 100 100 100 97 Engine 14 | . 14 14 14 14 Leg 5 | . 20 . . . Hover 22 | . 7 28 28 26 Device 20 | . 28 28 17 14 Storage 7 | . . . 10 14 Energy Cannon 26 | . 23 28 28 27 Naked Turns . | . . . . . Heaviest Build 15 | 9 11 11 15 15 Greatest Support 20 | 20 20 12 12 12 Greatest Overweight (x) 1 | . 1 . 1 1 Average Overweight (x) . | . . . . 1 Largest Inventory Capacity 8 | 5 5 5 8 8 Average Capacity 6 | 5 5 5 7 8 Most Carried 6 | 3 5 5 6 6 Average Carried 3 | . 3 5 5 6 Final Capacity 8 | 5 5 5 8 8 Final Carried 6 | . 5 5 6 6 Class Distribution -------------------- 66% | Mutant 19% | Scavenger-Mutant 14% | Skirmisher Dominant Class ---------------- Mutant | -10/Materials Scavenger-Mutant | -10/Mines Mutant | -10/Exiles Skirmisher | -9/Mines Resources | -11 -10 -10 -10 -9 ----------- Run | Yrd Mat Min Exi Min Matter Collected 370 | 281 89 . . . Remotely . | . . . . . Salvage Created 338 | 56 239 . . 43 Parts 29 | 9 16 . . 4 Haulers Intercepted 1 | . 1 . . . Recyclers Shooed . | . . . . . Parts Field Recycled . | . . . . . Retrieved Matter . | . . . . . Parts Self-Destructed . | . . . . . Prevented . | . . . . . Kills | -11 -10 -10 -10 -9 ------- Run | Yrd Mat Min Exi Min Combat Hostiles Destroyed 5 | . 4 . . 1 Cannons 1 | . . . . 1 AOE 4 | . 4 . . . Classes Destroyed 8 | 1 6 . . 1 Worker 1 | . 1 . . . Tunneler 2 | 2 . . . . Hauler 1 | . 1 . . . Recycler 1 | . 1 . . . Operator 1 | . 1 . . . Watcher 1 | . 1 . . . Grunt 4 | . 4 . . . Demolisher 1 | . . . . 1 Best Kill Streak 7 | 2 7 . . 1 Combat Bots Only 4 | . 4 . . 1 Max Kills in Single Turn 7 | 1 7 . . 1 Gunslinging . | . . . . . Exploded 4 | . 4 . . . Melee . | . . . . . Uniques/NPCs Destroyed . | . . . . . Combat | -11 -10 -10 -10 -9 -------- Run | Yrd Mat Min Exi Min Hostile Shots Fired 38 | 7 16 . . 15 Missed 6 | 1 4 . . 1 Damage Taken 736 | 62 129 . . 545 Core 251 | . 10 . . 241 Absorbed by Shields . | . . . . . Core Remaining (%) 100 | 100 . . . . Volleys Fired 27 | 9 13 . . 5 Largest 2 | 2 2 . . 2 Hottest 120 | 70 120 . . 120 Shots Fired 53 | 18 26 . . 9 Gun 20 | 18 2 . . . Cannon 33 | . 24 . . 9 Launcher . | . . . . . Special . | . . . . . Kinetic 10 | 9 1 . . . Thermal 43 | 9 25 . . 9 Explosive . | . . . . . Electromagnetic . | . . . . . Robot Hit Streak 4 | 4 1 . . 4 Robot Miss Streak 4 | 4 4 . . 1 Penetration Max . | . . . . . Secondary Targets . | . . . . . Shots Hit Robots 19 | 10 3 . . 6 Core Hits 12 | 3 5 . . 4 Critical Kills . | . . . . . Critical Parts Destroyed . | . . . . . Critical Strikes 1 | 1 . . . . Burn 1 | 1 . . . . Melee Attacks . | . . . . . Impact . | . . . . . Slashing . | . . . . . Piercing . | . . . . . Sneak Attacks . | . . . . . Combat Hostiles . | . . . . . Follow-up Attacks . | . . . . . Damage Inflicted 1477 | 140 1179 . . 158 Guns 153 | 140 13 . . . Cannons 226 | . 68 . . 158 Explosions 1098 | . 1098 . . . Melee . | . . . . . Ramming . | . . . . . Kinetic 65 | 65 . . . . Thermal 1412 | 75 1179 . . 158 Explosive . | . . . . . Electromagnetic . | . . . . . Impact . | . . . . . Slashing . | . . . . . Piercing . | . . . . . Highest Corruption . | . . . . . Average Corruption . | . . . . . Corruption Purged . | . . . . . Corruption Blocked . | . . . . . Overload Shots . | . . . . . Overflow Damage 224 | . 224 . . . Projectiles . | . . . . . Explosions 224 | . 224 . . . Melee . | . . . . . Knockbacks . | . . . . . Impact . | . . . . . Kinetic . | . . . . . Secondary . | . . . . . Self-Inflicted Damage . | . . . . . Shots . | . . . . . Rammed . | . . . . . Targets Rammed . | . . . . . Kicked . | . . . . . Crushed . | . . . . . Highest Temperature 527 | 81 527 . . 267 Average Temperature 149 | 29 193 . . 166 Received Heat Transfer 108 | 36 72 . . . Effects 3 | . 1 . . 2 Shutdowns 1 | . 1 . . . Interference 2 | . . . . 2 Siege Activations . | . . . . . Robots Corrupted . | . . . . . Combat Hostiles . | . . . . . Parts Fried . | . . . . . Impact Corruptions . | . . . . . Robots Melted . | . . . . . Combat Hostiles . | . . . . . Parts Melted . | . . . . . Heat Transferred 1464 | 296 835 . . 333 Parts Sabotaged . | . . . . . Parts Stolen . | . . . . . Parts Stripped . | . . . . . Power Chain Reactions . | . . . . . Alert | -11 -10 -10 -10 -9 ------- Run | Yrd Mat Min Exi Min Peak Influence 334 | 55 334 130 . 30 Initial 130 | . 35 130 . . Average 68 | 20 154 130 . . Maximum Alert Level 1 | . 1 . . . Low Security (%) 87 | 100 65 100 . 100 Level 1 12 | . 34 . . . Level 2 . | . . . . . Level 3 . | . . . . . Level 4 . | . . . . . Level 5 . | . . . . . High Security . | . . . . . Max Security . | . . . . . Squads Dispatched 3 | . 3 . . . Investigation 1 | . 1 . . . Extermination . | . . . . . Reinforcement 2 | . 2 . . . Assault . | . . . . . Garrison . | . . . . . Intercept . | . . . . . Searches Triggered . | . . . . . Construction Impeded . | . . . . . Haulers Reinforced . | . . . . . Active Scanning Responses . | . . . . . Cargo Convoy Interrupts . | . . . . . Stealth | -11 -10 -10 -10 -9 --------- Run | Yrd Mat Min Exi Min Distress Signals 2 | . 2 . . . Communications Jammed . | . . . . . Distress Signals . | . . . . . Times Spotted 14 | 4 8 . . 2 Peak Tracking Total 6 | 1 6 . . 2 Tactical Retreats 3 | 3 . . . . Traps | -11 -10 -10 -10 -9 ------- Run | Yrd Mat Min Exi Min Traps Triggered 1 | . 1 . . . Indirectly . | . . . . . Trap Hack Attempts . | . . . . . Triggered . | . . . . . Disarmed . | . . . . . Reprogrammed . | . . . . . Reused . | . . . . . Traps Extracted . | . . . . . Installed . | . . . . . Triggered . | . . . . . Machines | -11 -10 -10 -10 -9 ---------- Run | Yrd Mat Min Exi Min Machines Disabled 8 | . 8 . . . Max in Single Turn 8 | . 8 . . . Machines Repaired . | . . . . . Machines Dismantled . | . . . . . Machines Sabotaged . | . . . . . Overloaded Fab Kills . | . . . . . Hacking | -11 -10 -10 -10 -9 --------- Run | Yrd Mat Min Exi Min Machines Accessed 6 | . 1 . 5 . Terminals 1 | . 1 . . . Fabricators . | . . . . . Repair Stations . | . . . . . Recycling Units . | . . . . . Scanalyzers . | . . . . . Garrison Access . | . . . . . Total Hacks 57 | . 7 . 50 . Successful 53 | . 3 . 50 . Failed 4 | . 4 . . . Catastrophic 1 | . 1 . . . Database Lockouts . | . . . . . Manual 2 | . . . 2 . Terminals 7 | . 7 . . . Fabricators . | . . . . . Repair Stations . | . . . . . Recycling Units . | . . . . . Scanalyzers . | . . . . . Garrison Access . | . . . . . Terminal Hacks 53 | . 3 . 50 . Record 52 | . 3 . 49 . Derelict Proto ID Bank 1 | . . . 1 . Fabricator Hacks . | . . . . . Repair Station Hacks . | . . . . . Recycling Unit Hacks . | . . . . . Scanalyzer . | . . . . . Garrison Access Hacks . | . . . . . Unauthorized Hacks . | . . . . . Terminals . | . . . . . Fabricators . | . . . . . Repair Stations . | . . . . . Recycling Units . | . . . . . Scanalyzers . | . . . . . Garrison Access . | . . . . . Data Cores Recovered . | . . . . . Used . | . . . . . Hacking Detections 1 | . 1 . . . Full Trace Events . | . . . . . Feedback Events . | . . . . . Feedback Blocked . | . . . . . Robot Schematics Acquired . | . . . . . Robots Built . | . . . . . Authchips . | . . . . . Time . | . . . . . Total Robot Build Rating . | . . . . . Part Schematics Acquired . | . . . . . Parts Built . | . . . . . Authchips . | . . . . . Time . | . . . . . Total Part Build Rating . | . . . . . Parts Repaired . | . . . . . Time . | . . . . . Parts Recycled . | . . . . . Recycled Matter . | . . . . . Retrieved Matter . | . . . . . Retrieved Components . | . . . . . Parts Scanalyzed . | . . . . . Part Schematics Acquired . | . . . . . Parts Damaged . | . . . . . Bothacking | -11 -10 -10 -10 -9 ------------ Run | Yrd Mat Min Exi Min Used RIF Installer . | . . . . . Robots Hacked . | . . . . . Non-combat . | . . . . . Combat . | . . . . . Robot Hacks Applied . | . . . . . Relay Couplers Released . | . . . . . Fabnet Peak Effective % . | . . . . . Robots Rewired . | . . . . . Allies Hacked . | . . . . . Hacks Repelled . | . . . . . Allies | -11 -10 -10 -10 -9 -------- Run | Yrd Mat Min Exi Min Total Allies . | . . . . . Largest Group . | . . . . . Highest-Rated Group . | . . . . . Highest-Rated Ally . | . . . . . Total Orders . | . . . . . Ally Attacks . | . . . . . Total Damage . | . . . . . Kills . | . . . . . Allies Corrupted . | . . . . . Allies Melted . | . . . . . Intel | -11 -10 -10 -10 -9 ------- Run | Yrd Mat Min Exi Min Robot Analysis Total . | . . . . . Derelict Logs Recovered . | . . . . . Drone Launches . | . . . . . Drone Recoveries . | . . . . . Exploration | -11 -10 -10 -10 -9 ------------- Run | Yrd Mat Min Exi Min Turns Passed 1086 | 241 235 32 419 159 Spaces Moved 927 | 177 128 43 453 126 Core 22 | 16 . . . 6 Treads . | . . . . . Legs 235 | 161 74 . . . Wheels . | . . . . . Hover 670 | . 54 43 453 120 Flight . | . . . . . Fastest Speed 50 | 50 56 56 56 100 Average Speed 97 | 113 97 56 91 115 Slowest Speed 190 | 120 190 56 116 116 Overloaded Moves . | . . . . . Propulsion Burnouts . | . . . . . Robots Hopped . | . . . . . Cave-ins Triggered . | . . . . . Exploration Rate (%) 33 | 7 23 17 73 47 Regions Visited 4 Branch Regions 3 Pre-discovered Areas 1 | . . . 1 . Known Exits Taken . | . . . . . Unknown Exits Taken 4 | 1 1 1 1 . Scrap Searched . | . . . . . Spaces Dug . | . . . . . Terrain Destroyed 18 | . 18 . . . Melee . | . . . . . Projectile . | . . . . . AOE 18 | . 18 . . . Terrain Rammed . | . . . . . Walls Destroyed . | . . . . . Machines Disabled . | . . . . . Actions | -11 -10 -10 -10 -9 --------- Run | Yrd Mat Min Exi Min Total 1051 | 199 211 50 460 131 Wait 64 | . 54 8 2 . Move 923 | 176 127 42 452 126 Hop . | . . . . . Pick Up 15 | 7 7 . 1 . Fast Attach 1 | . . . 1 . Attach 9 | 7 2 . . . Detach . | . . . . . Swap 5 | . 5 . . . Drop 7 | . 3 . 4 . Fire 27 | 9 13 . . 5 Melee . | . . . . . Ram . | . . . . . Kick . | . . . . . Crush . | . . . . . Escape Stasis . | . . . . . Rewire . | . . . . . Trap . | . . . . . Miscellaneous . | . . . . . Route ------- -11/Scrapyard -10/Materials -10/Mines -10/Exiles (discovered 2 exits: [*Min x2]) -9/Mines History --------- Turn | Location | Event 2 | -11/Scrapyard | Met Revision 17 58 | -11/Scrapyard | Discovered new exit (range 8) 242 | -11/Scrapyard | Entered Materials 317 | -10/Materials | Build established: Mutant 395 | -10/Materials | Met 8R-AWN 466 | -10/Materials | Discovered new exit (range 8) 477 | -10/Materials | Entered Mines 478 | -10/Mines | Followed 8R-AWN into the Mines 507 | -10/Mines | Discovered new exit (range 5) 509 | -10/Mines | Entered Exiles 519 | -10/Exiles | Discovered new exit (range 14) 525 | -10/Exiles | Welcomed by 8R-AWN 540 | -10/Exiles | Met EX-HEX 573 | -10/Exiles | Met EX-DEC 590 | -10/Exiles | Learned location of Zion (-7) 644 | -10/Exiles | Discovered new exit (range 14) 720 | -10/Exiles | Met EX-BIN 734 | -10/Exiles | Aligned with FarCom system 735 | -10/Exiles | Given EX-Vault access code 772 | -10/Exiles | Opened EX-Vault 811 | -10/Exiles | Found Flying Fortress v7 836 | -10/Exiles | Warned to stay clear of 0b10 Research branches 889 | -10/Exiles | Learned about 8R-AWN's background 928 | -10/Exiles | Left Exiles lab with Flying Fortress v7 928 | -10/Exiles | Entered Mines 1044 | -9/Mines | Assembled infested the area 1080 | -9/Mines | Core integrity fell below 50% 1087 | -9/Mines | Destroyed by D-53 Grenadier with Mini Grenade Launcher Last Messages --------------- LOCATION=UNKNOWN GOAL=ESCAPE 00928_ Receiving FarCom transmissions... 00993_ T-07 Excavator is excavating. 01044_ ALERT: Infestation in the mines, dispatching Demolisher response squad. 01047_ K-01 Serf collects debris. 01068_ C-30 ARC bursts open, deploying its payload. 01068_ D-53 Grenadier unfolds itself. 01073_ Hover Unit destroyed. 01078_ The unstable cave ceiling collapses. 01079_ Beam Cannon destroyed. 01080_ D-53 Grenadier destroyed. 01081_ Overheating: System interference. 01081_ Beam Cannon temporarily disabled. 01081_ Sensor Array temporarily disabled. 01081_ Beam Cannon destroyed. 01081_ Lgt. Ion Engine destroyed. 01082_ The unstable cave ceiling collapses. Map ----- +----------------------------------------------------+ | ???????????????????????????????????????????????? | | ???????????????????????????????????????????????? | | ???????????????????????????????????????????????? | | ???????????????????????????????????????????????? | | ???????????????????????????????????????????????? | | ???????????????????????????????????????????????? | | ???????????????????????????????????????????????? | | ???????????????????????????????????????????????? | | ???????????????????????????????????????????????? | | ???????????????????????????????????????????????? | | ???????????????????????????????????????????????? | | ???????????????????????????????????????????????? | | ???????????????????????????????????????????????? | | ??????????????????????????????????????????####?? | | ??????????????????????????????????????##### #?? | | ?????????????????????????????????????## ?? | | ????????????????????????????????????## ?? | | ???????????????????????????????????## #?? | | ?????????????????????????????????### #?? | | ????????????????????????????????## ##? | | ??????????????????????###??????## #?# ## | | ?????????????????????## ######## #???# # | | ?????????????????????# # ####### | | ?????????????????????# # | | ???????????????######## # ## | | ??????????# % ]%@ # #### | | ???????????????#######d! #??# | | ?????????????????????# #?## | | ?????????????????????# ###### """ | | ????????????????????## # #??## """ | | ????????????????????# # ##?## """ | | ???????????????????## """ # #### | | ????????????????#### """ ### #### | | ???????????????## """ ####### | | ???????????????# ## ## | | ???????????????# #### ## | | ??????????????## ### #??## | | ?????????????## ### #?# #???### | | ?????????????# ##?## ######?????## | | ?????????????# ##???# #??????????# | | ?????????????# ##???## #?????????# | | ?????????????# ##???### #????????# | | ?????????????## #?????## #??????? ### | | ??????????????# #??????# #??????? ##?? | | ??????????????# #?????? #???????? ???? | | ??????????????## #?????? #??????????????? | | ???????????????## #????? ##??????????????? | | ????????????????## ???? #???????????????? | | ?????????????????? ??? ???????????????? | | ?????????????????? ###??# ???????????????? | +----------------------------------------------------+ Best States ------------- Heat Dissipation 25 Energy Generation 10 Energy Capacity 125 Matter Stores 300 Matter Capacity 300 Sight Range 16 Robot Scan Range 14 Terrain Scan Range 16 Terrain Scan Density 10 Evasion (%) 55 Item Schematics ----------------- None Robot Schematics ------------------ None Fabricated ------------ Nothing Alien Tech Used ----------------- None Achievements -------------- None Challenges ------------ None Game ------ Seed MetafieldPotentialArray Manual? 0 Play Time 00:26:21 Cumulative 7.5 hours Start 2024.04.07 @ 18:50:39 End 2024.04.07 @ 19:18:54 Sessions 1 Manual Loads 0 Difficulty Rogue Special Mode None Game No. 3 Rogue 3 Adventurer 0 Explorer 0 Win Type - Total 0 Types 0/0/0/0/0/0/0/0/0 Lore% 14 Gallery% 11 Achievement% 16 Wizard Run 0 Options --------- Layout 1 ASCII 0 Keyboard 0 Movement Mouse Keybinds 0 Fullscreen 1 Font 24/Smallcaps Map View 50x35 Zoom Use 0% Tactical HUD 1 Map Filters NONE Filters NONE Steam 1 RUN: 114601ca-72ee-41f5-8be1-a93b589d73c4